fUSD/lending_fUSD_20260703
["ID","MTS","AMOUNT","RATE_DAILY","PERIOD"]
[426953551,1783053045000,-156.80197,0.00032101,7]
[426953544,1783053045000,-394.709616,0.00032101,7]
[426953547,1783053045000,-156.80197,0.00032101,7]
[426953542,1783053045000,-199.462662,0.00032101,7]
[426953621,1783053046000,-199.462662,0.000323,7]
[426953628,1783053046000,-394.709616,0.000323,7]
[426953625,1783053046000,-199.462662,0.000323,7]
[426953622,1783053046000,-199.462662,0.000323,7]
[426953620,1783053046000,-151.0,0.000323,7]
[426953614,1783053046000,-150.0,0.00032268,30]
[426953618,1783053046000,-151.0,0.000323,7]
[426953619,1783053046000,-151.0,0.000323,7]
[426953615,1783053046000,-88718.290389,0.000323,2]
[426953616,1783053046000,-249.25761842,0.000323,2]
[426953623,1783053046000,-151.0,0.000323,7]
[426953624,1783053046000,-199.462662,0.000323,7]
[426953638,1783053046000,-251.638202,0.000323,7]
[426953626,1783053046000,-151.0,0.000323,7]
[426953636,1783053046000,-251.638202,0.000323,7]
[426953627,1783053046000,-394.709616,0.000323,7]
[426953629,1783053046000,-394.709616,0.000323,7]
[426953633,1783053046000,-394.709616,0.000323,7]
[426953632,1783053046000,-156.80197,0.000323,7]
[426953630,1783053046000,-156.80197,0.000323,7]
[426953634,1783053046000,-156.80197,0.000323,7]
[426953637,1783053046000,-251.638202,0.000323,7]
[426953639,1783053046000,-151.0,0.000323,7]
[426953642,1783053046000,-851.483759,0.000323,7]
[426953617,1783053046000,-321.92793758,0.000323,2]
[426953635,1783053046000,-156.80197,0.000323,7]
[426953613,1783053046000,-1202.14524433,0.00032234,2]
[426953598,1783053046000,-151.0,0.00032232,7]
[426953608,1783053046000,-419.989305,0.00032232,7]
[426953646,1783053046000,-259.646784,0.000323,7]
[426953588,1783053046000,-266.745055,0.00032232,7]
[426953587,1783053046000,-266.745055,0.00032232,7]
[426953586,1783053046000,-266.745055,0.00032232,7]
[426953585,1783053046000,-151.0,0.00032232,7]
[426953590,1783053046000,-151.0,0.00032232,7]
[426953589,1783053046000,-266.745055,0.00032232,7]
[426953591,1783053046000,-151.0,0.00032232,7]
[426953593,1783053046000,-151.0,0.00032232,7]
[426953592,1783053046000,-152.450153,0.00032232,7]
[426953597,1783053046000,-884.089772,0.00032232,7]
[426953595,1783053046000,-884.089772,0.00032232,7]
[426953609,1783053046000,-419.989305,0.00032232,7]
[426953594,1783053046000,-884.089772,0.00032232,7]
[426953599,1783053046000,-217.65285,0.00032232,7]
[426953600,1783053046000,-217.65285,0.00032232,7]
[426953602,1783053046000,-217.65285,0.00032232,7]
[426953603,1783053046000,-502.374451,0.00032232,7]
[426953601,1783053046000,-217.65285,0.00032232,7]
[426953604,1783053046000,-502.374451,0.00032232,7]
[426953605,1783053046000,-502.374451,0.00032232,7]
[426953606,1783053046000,-502.374451,0.00032232,7]
[426953607,1783053046000,-419.989305,0.00032232,7]
[426953610,1783053046000,-419.989305,0.00032232,7]
[426953612,1783053046000,-13632.0,0.00032232,7]
[426953611,1783053046000,-3408.86099099,0.00032232,2]
[426953596,1783053046000,-884.089772,0.00032232,7]
[426953640,1783053046000,-251.638202,0.000323,7]
[426953657,1783053046000,-150.0,0.00032383,2]
[426953645,1783053046000,-259.646784,0.000323,7]
[426953674,1783053046000,-150.0,0.00032598,30]
[426953675,1783053046000,-182.68,0.000326,7]
[426953677,1783053046000,-1040.84,0.00032603,120]
[426953681,1783053046000,-431.41143876,0.00032667,2]
[426953680,1783053046000,-1202.14524433,0.00032641,2]
[426953679,1783053046000,-1202.14524433,0.00032639,2]
[426953678,1783053046000,-373.02,0.00032609,3]
[426953682,1783053046000,-150.0,0.00032676,5]
[426953684,1783053046000,-1034.0,0.00032677,7]
[426953686,1783053046000,-1202.14524433,0.00032709,2]
[426953688,1783053046000,-1202.14524433,0.00032737,2]
[426953685,1783053046000,-841.56,0.00032682,2]
[426953676,1783053046000,-1178.0,0.000326,7]
[426953689,1783053046000,-663.39838011,0.0003274,14]
[426953691,1783053046000,-163.96286316,0.00032776,2]
[426953693,1783053046000,-1202.14524433,0.00032814,2]
[426953690,1783053046000,-431.41143876,0.00032776,2]
[426953694,1783053046000,-421.01,0.00032817,60]
[426953692,1783053046000,-33214.23311815,0.000328,15]
[426953699,1783053046000,-600.0,0.00032877,120]
[426953701,1783053046000,-600.0,0.00032877,120]
[426953698,1783053046000,-150.0,0.00032877,30]
[426953696,1783053046000,-1000.0,0.00032844,14]
[426953700,1783053046000,-600.0,0.00032877,120]
[426953697,1783053046000,-150.0,0.00032851,30]
[426953695,1783053046000,-1202.14524433,0.00032827,2]
[426953643,1783053046000,-851.483759,0.000323,7]
[426953672,1783053046000,-1202.14524433,0.00032549,2]
[426953687,1783053046000,-150.0,0.00032725,30]
[426953683,1783053046000,-328.0,0.00032676,7]
[426953673,1783053046000,-57621.34355285,0.00032594,2]
[426953644,1783053046000,-851.483759,0.000323,7]
[426953647,1783053046000,-259.646784,0.000323,7]
[426953648,1783053046000,-259.646784,0.000323,7]
[426953659,1783053046000,-163.96286316,0.00032393,2]
[426953660,1783053046000,-1202.14524433,0.00032438,2]
[426953650,1783053046000,-1915.26,0.000323,2]
[426953652,1783053046000,-526.49170685,0.00032302,2]
[426953651,1783053046000,-151.0,0.000323,7]
[426953653,1783053046000,-1202.14524433,0.00032325,2]
[426953654,1783053046000,-150.0,0.00032344,30]
[426953658,1783053046000,-431.41143876,0.00032393,2]
[426953641,1783053046000,-851.483759,0.000323,7]
[426953656,1783053046000,-508.7927224,0.00032356,60]
[426953668,1783053046000,-150.0,0.00032534,30]
[426953655,1783053046000,-1202.14524433,0.00032349,2]
[426953667,1783053046000,-151.24630945,0.00032525,120]
[426953669,1783053046000,-150.0,0.00032534,30]
[426953670,1783053046000,-150.0,0.00032534,30]
[426953664,1783053046000,-257.0,0.00032497,10]
[426953671,1783053046000,-150.0,0.00032534,30]
[426953661,1783053046000,-5703.31284984,0.00032445,2]
[426953666,1783053046000,-151.24630945,0.00032525,30]
[426953663,1783053046000,-150.0,0.00032471,30]
[426953662,1783053046000,-4571.15731054,0.00032445,2]
[426953665,1783053046000,-200.0,0.00032515,2]
[426953723,1783053047000,-443.0,0.00033,2]
[426953721,1783053047000,-331.0,0.00033,2]
[426953722,1783053047000,-273.0,0.00033,2]
[426953720,1783053047000,-246.0,0.00033,2]
[426953719,1783053047000,-150.0,0.00033,14]
[426953727,1783053047000,-1202.14524433,0.00033007,2]
[426953730,1783053047000,-431.41143889,0.00033049,2]
[426953726,1783053047000,-167.8312139,0.00033,2]
[426953724,1783053047000,-376.0,0.00033,2]
[426953725,1783053047000,-397.0,0.00033,2]
[426953715,1783053047000,-500.0,0.00033,7]
[426953732,1783053047000,-152.0,0.00033101,5]
[426953729,1783053047000,-856.21140488,0.0003303,2]
[426953728,1783053047000,-345.93383945,0.0003303,2]
[426953717,1783053047000,-500.0,0.00033,7]
[426953713,1783053047000,-531.68428883,0.00033,2]
[426953716,1783053047000,-500.0,0.00033,7]
[426953712,1783053047000,-153.98349704,0.00033,120]
[426953718,1783053047000,-220.8,0.00033,7]
[426953710,1783053047000,-150.0,0.00032978,30]
[426953711,1783053047000,-5140.77296738,0.0003298,2]
[426953708,1783053047000,-150.0,0.00032962,30]
[426953709,1783053047000,-247.0,0.00032975,3]
[426953707,1783053047000,-151.0,0.0003296,7]
[426953704,1783053047000,-204.04,0.000329,30]
[426953703,1783053047000,-600.0,0.00032877,120]
[426953706,1783053047000,-1202.14524433,0.00032943,2]
[426953705,1783053047000,-1202.14524433,0.00032932,2]
[426953702,1783053047000,-600.0,0.00032877,120]
[426953743,1783053047000,-150.0,0.00033232,30]
[426953714,1783053047000,-500.0,0.00033,7]
[426953740,1783053047000,-367.50907108,0.0003319,2]
[426953777,1783053047000,-179.56,0.00026829,7]
[426953731,1783053047000,-1178.0,0.000331,7]
[426953742,1783053047000,-1000.0,0.0003322,30]
[426953778,1783053047000,-179.56,0.0002755,2]
[426953779,1783053047000,-53.1765165,0.00027551,30]
[426953776,1783053047000,-179.56,0.00024658,2]
[426953763,1783053047000,-532.90186811,0.00033374,2]
[426953762,1783053047000,-7.35590298,0.00033374,2]
[426953761,1783053047000,-664.06,0.00033374,2]
[426953759,1783053047000,-666.66,0.00033374,2]
[426953760,1783053047000,-11430.8072554,0.00033374,2]
[426953758,1783053047000,-141474.40925335,0.00033374,2]
[426953757,1783053047000,-366.99796995,0.00033374,2]
[426953753,1783053047000,-841.56,0.00033367,2]
[426953748,1783053047000,-1202.14524433,0.00033288,2]
[426953754,1783053047000,-151.0,0.00033371,14]
[426953755,1783053047000,-902.31249478,0.00033374,2]
[426953764,1783053047000,-385.99513537,0.00033374,2]
[426953756,1783053047000,-89349.03510181,0.00033374,2]
[426953752,1783053047000,-150.0,0.00033359,30]
[426953733,1783053047000,-150.0,0.00033105,30]
[426953736,1783053047000,-1202.14524433,0.00033138,2]
[426953734,1783053047000,-150.0,0.00033105,30]
[426953737,1783053047000,-155.42114839,0.00033155,2]
[426953735,1783053047000,-1202.14524433,0.00033106,2]
[426953738,1783053047000,-1202.14524433,0.00033177,2]
[426953747,1783053047000,-1002.94562655,0.00033274,2]
[426953746,1783053047000,-153.03941338,0.00033274,2]
[426953750,1783053047000,-1000.0,0.00033335,30]
[426953745,1783053047000,-1202.14524433,0.00033272,2]
[426953744,1783053047000,-1202.14524433,0.00033249,2]
[426953749,1783053047000,-163.96286316,0.00033321,2]
[426953751,1783053047000,-1202.14524433,0.00033347,2]
[426953793,1783053048000,-500.0,0.0002095,2]
[426953794,1783053048000,-500.0,0.0002095,2]
[426953798,1783053048000,-500.0,0.0002095,2]
[426953796,1783053048000,-500.0,0.0002095,2]
[426953795,1783053048000,-632.16685791,0.0002095,2]
[426953800,1783053048000,-500.0,0.0002095,2]
[426953792,1783053048000,-406.92182205,0.0002095,2]
[426953804,1783053048000,-500.0,0.0002095,2]
[426953797,1783053048000,-506.94891151,0.0002095,2]
[426953791,1783053048000,-500.0,0.0002095,2]
[426953785,1783053048000,-500.0,0.0002095,2]
[426953789,1783053048000,-236.97084458,0.0002095,2]
[426953787,1783053048000,-216.47136167,0.0002095,2]
[426953788,1783053048000,-501.55822741,0.0002095,2]
[426953786,1783053048000,-500.0,0.0002095,2]
[426953783,1783053048000,-500.0,0.0002095,2]
[426953782,1783053048000,-500.0,0.0002095,2]
[426953780,1783053048000,-500.0,0.0002095,2]
[426953781,1783053048000,-500.0,0.0002095,2]
[426953799,1783053048000,-500.0,0.0002095,2]
[426953790,1783053048000,-263.02915542,0.0002095,2]
[426953808,1783053048000,-323.46896935,0.0002095,2]
[426953784,1783053048000,-500.0,0.0002095,2]
[426953807,1783053048000,-176.53103065,0.0002095,2]
[426953810,1783053048000,-500.0,0.0002095,2]
[426953824,1783053048000,-924.2,0.00028195,7]
[426953825,1783053048000,-64.3138437,0.00028195,7]
[426953823,1783053048000,-198.26,0.00028034,30]
[426953820,1783053048000,-924.2,0.00027873,2]
[426953818,1783053048000,-198.26,0.00027712,7]
[426953821,1783053048000,-198.26,0.00027873,2]
[426953817,1783053048000,-924.2,0.00027551,30]
[426953816,1783053048000,-145.0834835,0.00027551,30]
[426953815,1783053048000,-92.2704268,0.0002095,2]
[426953819,1783053048000,-924.2,0.00027712,7]
[426953813,1783053048000,-500.0,0.0002095,2]
[426953814,1783053048000,-407.7295732,0.0002095,2]
[426953822,1783053048000,-924.2,0.00028034,30]
[426953812,1783053048000,-500.0,0.0002095,2]
[426953806,1783053048000,-500.0,0.0002095,2]
[426953802,1783053048000,-500.0,0.0002095,2]
[426953803,1783053048000,-500.0,0.0002095,2]
[426953805,1783053048000,-500.0,0.0002095,2]
[426953801,1783053048000,-500.0,0.0002095,2]
[426953809,1783053048000,-558.92167433,0.0002095,2]
[426953811,1783053048000,-500.0,0.0002095,2]
[426953833,1783053400000,-150.0,0.0001995,2]
[426953838,1783053748000,-479.03,0.0001995,2]
[426953839,1783053748000,-321.05282848,0.0001995,2]
[426953842,1783053748000,-150.0,0.0001995,2]
[426953837,1783053748000,-460.27236047,0.0001995,2]
[426953840,1783053748000,-150.0,0.0001995,2]
[426953841,1783053748000,-152.0,0.0001995,2]
[426953844,1783053748000,-151.0,0.0001995,2]
[426953845,1783053748000,-7985.64481105,0.0002,2]
[426953843,1783053748000,-151.0,0.0001995,2]
[426953854,1783054160000,-152.16072852,0.000142,2]
[426953860,1783054233000,-803.42780783,0.00014989,2]
[426953861,1783054233000,-140787.68372439,0.00015,2]
[426953859,1783054233000,-393.35865261,0.00014594,2]
[426953904,1783054238000,-150.99,0.000201,2]
[426953906,1783054238000,-153.03941338,0.00020387,2]
[426953907,1783054238000,-2773.06352958,0.00021,2]
[426953905,1783054238000,-1495.97,0.000201,2]
[426953900,1783054238000,-378.2,0.000201,2]
[426953901,1783054238000,-8859.36,0.000201,2]
[426953909,1783054238000,-500.0,0.00021293,2]
[426953899,1783054238000,-9999.99,0.000201,2]
[426953897,1783054238000,-3367.85,0.000201,2]
[426953898,1783054238000,-9999.99,0.000201,2]
[426953903,1783054238000,-999.99,0.000201,2]
[426953913,1783054238000,-500.0,0.00021293,2]
[426953914,1783054238000,-500.0,0.00021293,2]
[426953922,1783054238000,-150.0,0.0002189,2]
[426953911,1783054238000,-385.61316789,0.00021293,2]
[426953921,1783054238000,-244.56,0.00021642,2]
[426953912,1783054238000,-500.0,0.00021293,2]
[426953923,1783054238000,-150.0,0.00021918,2]
[426953915,1783054238000,-500.0,0.00021293,2]
[426953917,1783054238000,-589.43871181,0.00021293,2]
[426953920,1783054238000,-304292.2099345,0.00021294,2]
[426953919,1783054238000,-304292.2099344,0.00021294,2]
[426953924,1783054238000,-500.0,0.00021989,2]
[426953932,1783054238000,-192.61,0.00022284,2]
[426953908,1783054238000,-221.15974176,0.00021165,2]
[426953910,1783054238000,-522.6370061,0.00021293,2]
[426953893,1783054238000,-3029.70465435,0.0001995,15]
[426953880,1783054238000,-425.51209354,0.00016438,2]
[426953896,1783054238000,-2593.2,0.000201,2]
[426953870,1783054238000,-153.03941338,0.000164,2]
[426953869,1783054238000,-9818.21896566,0.00015,2]
[426953871,1783054238000,-500.0,0.00016438,2]
[426953872,1783054238000,-500.0,0.00016438,2]
[426953874,1783054238000,-459.54887636,0.00016438,2]
[426953873,1783054238000,-500.0,0.00016438,2]
[426953876,1783054238000,-500.0,0.00016438,2]
[426953878,1783054238000,-500.0,0.00016438,2]
[426953875,1783054238000,-40.45112364,0.00016438,2]
[426953879,1783054238000,-500.0,0.00016438,2]
[426953883,1783054238000,-500.0,0.00016438,2]
[426953877,1783054238000,-500.0,0.00016438,2]
[426953881,1783054238000,-500.0,0.00016438,2]
[426953882,1783054238000,-500.0,0.00016438,2]
[426953884,1783054238000,-500.0,0.00016438,2]
[426953885,1783054238000,-500.0,0.00016438,2]
[426953888,1783054238000,-500.0,0.00016438,2]
[426953887,1783054238000,-500.0,0.00016438,2]
[426953895,1783054238000,-195.63,0.000201,14]
[426953889,1783054238000,-500.0,0.00016438,2]
[426953892,1783054238000,-523.16700797,0.00019594,2]
[426953934,1783054238000,-244.56,0.00022724,2]
[426953894,1783054238000,-9830.44175176,0.0002,2]
[426953890,1783054238000,-500.0,0.00016438,2]
[426953886,1783054238000,-500.0,0.00016438,2]
[426953891,1783054238000,-1752.66364249,0.000165,2]
[426953929,1783054238000,-500.0,0.00022074,2]
[426953959,1783054238000,-150.0,0.00024164,2]
[426953926,1783054238000,-2509.31263003,0.00022,4]
[426953960,1783054238000,-9542.4,0.00024174,2]
[426953970,1783054238000,-384.1,0.00024807,2]
[426953961,1783054238000,-1797.16,0.00024174,2]
[426953962,1783054238000,-284.52,0.00024174,2]
[426953963,1783054238000,-381.4,0.00024174,2]
[426953965,1783054238000,-153.03941338,0.00024375,2]
[426953964,1783054238000,-863.47626194,0.0002421,2]
[426953968,1783054238000,-151.02,0.00024658,2]
[426953969,1783054238000,-207.84,0.00024658,2]
[426953967,1783054238000,-652.97536334,0.00024594,2]
[426953971,1783054238000,-192.61,0.00025069,120]
[426953974,1783054238000,-216.74224685,0.00025572,2]
[426953981,1783054238000,-32966.48275984,0.000258,2]
[426953978,1783054238000,-5000.0,0.00025618,2]
[426953975,1783054238000,-160.0,0.00025599,2]
[426953973,1783054238000,-229.0,0.0002552,2]
[426953976,1783054238000,-688.3934253,0.000256,2]
[426953972,1783054238000,-150.0,0.00025373,2]
[426953977,1783054238000,-208.83953641,0.000256,2]
[426953980,1783054238000,-688.3934253,0.000258,2]
[426953979,1783054238000,-150.0,0.00025675,7]
[426953982,1783054238000,-150.0,0.00025998,5]
[426953984,1783054238000,-4620.53191287,0.00026,2]
[426953983,1783054238000,-1137.31283554,0.00026,2]
[426953935,1783054238000,-918.0,0.00022995,2]
[426953955,1783054238000,-195.5823458,0.00024132,2]
[426953957,1783054238000,-3042.4093911,0.00024132,2]
[426953966,1783054238000,-155.42114839,0.00024397,2]
[426953954,1783054238000,-500.0,0.00024131,2]
[426953927,1783054238000,-500.0,0.00022074,2]
[426953956,1783054238000,-96834.6991322,0.00024132,2]
[426953931,1783054238000,-244.56,0.00022183,2]
[426953930,1783054238000,-500.0,0.00022074,2]
[426953933,1783054238000,-887.0,0.00022351,2]
[426953928,1783054238000,-500.0,0.00022074,2]
[426953937,1783054238000,-244.56,0.00023265,2]
[426953936,1783054238000,-150.0,0.00023014,2]
[426953938,1783054238000,-903.0,0.00023644,2]
[426953941,1783054238000,-393.07,0.00023928,2]
[426953943,1783054238000,-151.0,0.00024129,7]
[426953945,1783054238000,-500.0,0.00024131,2]
[426953946,1783054238000,-500.0,0.00024131,2]
[426953925,1783054238000,-500.0,0.00021989,2]
[426953939,1783054238000,-244.56,0.00023806,2]
[426953942,1783054238000,-195.69673936,0.00024031,2]
[426953953,1783054238000,-452.93942131,0.00024131,2]
[426953950,1783054238000,-500.0,0.00024131,2]
[426953952,1783054238000,-500.0,0.00024131,2]
[426953949,1783054238000,-500.0,0.00024131,2]
[426953958,1783054238000,-2497.9667847,0.00024132,2]
[426953951,1783054238000,-500.0,0.00024131,2]
[426953947,1783054238000,-500.0,0.00024131,2]
[426953944,1783054238000,-500.0,0.00024131,2]
[426953940,1783054238000,-2989.316396,0.00023896,2]
[426953948,1783054238000,-500.0,0.00024131,2]
[426954004,1783054239000,-200.0,0.000265,9]
[426954007,1783054239000,-687.0,0.00026614,5]
[426954001,1783054239000,-681.0,0.00026363,5]
[426954006,1783054239000,-400.0,0.000266,9]
[426954003,1783054239000,-672.0,0.00026462,5]
[426953999,1783054239000,-684.0,0.000263,5]
[426954002,1783054239000,-233.6935255,0.000264,2]
[426954009,1783054239000,-167.16,0.00026678,2]
[426954000,1783054239000,-231.09373157,0.00026309,5]
[426953998,1783054239000,-688.3934253,0.000263,2]
[426954005,1783054239000,-688.3934253,0.000266,2]
[426953993,1783054239000,-687.0,0.00026147,5]
[426953996,1783054239000,-677.0,0.00026222,5]
[426953988,1783054239000,-673.0,0.00026084,5]
[426953992,1783054239000,-665.0,0.00026128,5]
[426953990,1783054239000,-688.3934253,0.000261,2]
[426953991,1783054239000,-663.0,0.00026111,5]
[426953989,1783054239000,-683.0,0.00026096,5]
[426953987,1783054239000,-663.0,0.00026073,5]
[426953986,1783054239000,-1766.0,0.00026071,2]
[426953994,1783054239000,-673.0,0.00026168,5]
[426953995,1783054239000,-676.0,0.00026193,5]
[426954019,1783054239000,-151.0,0.00026706,5]
[426953997,1783054239000,-685.0,0.00026252,5]
[426954020,1783054239000,-680.0,0.00026706,5]
[426953985,1783054239000,-2068.84214299,0.00026,5]
[426954011,1783054239000,-996.59,0.00026706,120]
[426954008,1783054239000,-150.0,0.00026641,2]
[426954036,1783054239000,-296.65887507,0.000268,2]
[426954033,1783054239000,-207.64359543,0.0002679,2]
[426954034,1783054239000,-266291.74046127,0.000268,2]
[426954035,1783054239000,-1119797.56006107,0.000268,2]
[426954031,1783054239000,-670.0,0.00026706,5]
[426954029,1783054239000,-665.0,0.00026706,5]
[426954030,1783054239000,-298.8962908,0.00026706,5]
[426954028,1783054239000,-270.01173279,0.00026706,5]
[426954025,1783054239000,-151.0,0.00026706,5]
[426954024,1783054239000,-150.0,0.00026706,5]
[426954026,1783054239000,-662.0,0.00026706,5]
[426954022,1783054239000,-150.0,0.00026706,5]
[426954027,1783054239000,-150.0,0.00026706,5]
[426954032,1783054239000,-684.0,0.00026773,5]
[426954023,1783054239000,-675.0,0.00026706,5]
[426954021,1783054239000,-152.0,0.00026706,5]
[426954018,1783054239000,-677.0,0.00026706,5]
[426954017,1783054239000,-151.0,0.00026706,5]
[426954016,1783054239000,-151.0,0.00026706,5]
[426954013,1783054239000,-151.0,0.00026706,5]
[426954015,1783054239000,-152.0,0.00026706,5]
[426954014,1783054239000,-663.0,0.00026706,5]
[426954012,1783054239000,-150.0,0.00026706,5]
[426954010,1783054239000,-600.0,0.000267,9]
[426954051,1783054242000,-187.60024829,0.00024658,2]
[426954052,1783054242000,-14.99975171,0.00024658,2]
[426954054,1783054242000,-239.99420089,0.000268,2]
[426954055,1783054242000,-294.01991019,0.000268,2]
[426954053,1783054242000,-245.0060474,0.000267,2]
[426954050,1783054242000,-263.24291087,0.00024602,2]
[426954056,1783054243000,-2433.34352688,0.000268,2]
[426954061,1783054245000,-964.03,0.000268,2]
[426954060,1783054245000,-2315.6081812,0.000268,2]
[426954059,1783054245000,-201.85,0.00024658,2]
[426954062,1783054271000,24.04495549,0.00013699,2]
[426954063,1783054271000,181.3,0.00013699,2]
[426954064,1783054271000,153.0,0.00013699,2]
[426954065,1783054271000,19.53504451,0.00013699,2]
[426954066,1783054272000,161.95,0.00013836,2]
[426954070,1783054596000,220.26572649,0.00013924,2]
[426954071,1783054596000,56.45604918,0.00013924,2]
[426954069,1783054596000,73.99540975,0.00013924,2]
[426954082,1783054896000,460.27236047,0.00013924,2]
[426954103,1783055431000,-200.87,0.00016655,7]
[426954104,1783055431000,-274.99,0.00017645,2]
[426954100,1783055431000,-306.93417438,0.000161,2]
[426954101,1783055431000,-161.13706357,0.00016316,2]
[426954106,1783055431000,-151.05874926,0.00019425,2]
[426954098,1783055431000,-693.18498306,0.000161,2]
[426954096,1783055431000,-208.19997232,0.00014924,2]
[426954097,1783055431000,-461.9995578,0.00014936,2]
[426954099,1783055431000,-1259.17384888,0.000161,2]
[426954109,1783055431000,-614.45941188,0.00019936,2]
[426954102,1783055431000,-200.0,0.00016655,2]
[426954105,1783055431000,-717.37029998,0.00019136,2]
[426954122,1783055431000,-915.96,0.00020951,2]
[426954120,1783055431000,-150.99,0.00020951,2]
[426954118,1783055431000,-1041.18,0.00020951,2]
[426954111,1783055431000,-157.71,0.0001995,2]
[426954110,1783055431000,-215.56,0.0001995,2]
[426954108,1783055431000,-1013.25616639,0.000199,2]
[426954114,1783055431000,-9999.99,0.00020951,2]
[426954113,1783055431000,-5194.0,0.000205,5]
[426954112,1783055431000,-247.43943507,0.000201,2]
[426954107,1783055431000,-688.46653532,0.00019531,2]
[426954116,1783055431000,-9999.99,0.00020951,2]
[426954131,1783055432000,-666.55766409,0.00021711,2]
[426954134,1783055432000,-503.0,0.000219,7]
[426954139,1783055432000,-347.2609006,0.00022184,2]
[426954135,1783055432000,-150.0,0.00021918,2]
[426954137,1783055432000,-303.85328803,0.00022184,2]
[426954124,1783055432000,-381.4,0.00021273,2]
[426954142,1783055432000,-750.0,0.00022601,2]
[426954127,1783055432000,-298.42495575,0.00021479,3]
[426954129,1783055432000,-433.44233591,0.00021711,2]
[426954144,1783055432000,-298.42495575,0.00022677,2]
[426954148,1783055432000,-501.15986951,0.00022928,2]
[426954146,1783055432000,-500.0,0.00022712,2]
[426954152,1783055432000,-456.96,0.00023111,2]
[426954154,1783055432000,-581.38739263,0.0002314,2]
[426954156,1783055432000,-500.0,0.0002314,2]
[426954158,1783055432000,-395.27486725,0.0002314,2]
[426954160,1783055432000,-1059.19,0.00023196,2]
[426954162,1783055432000,-226.28509312,0.00023196,2]
[426954126,1783055432000,-7189.74,0.00021273,2]
[426954150,1783055432000,-150.0,0.00023014,2]
[426954191,1783055437000,-1479.72528278,0.00023342,2]
[426954187,1783055437000,-73.71490688,0.00023196,2]
[426954190,1783055437000,-823.71490689,0.00023207,2]
[426954188,1783055437000,-200.0,0.00023196,2]
[426954192,1783055437000,-345.83508856,0.00023342,2]
[426954193,1783055437000,-2522.15,0.00023342,2]
[426954189,1783055437000,-176.28509311,0.00023207,2]
[426954194,1783055438000,-725.41464031,0.00023342,2]
[426954224,1783055440000,-154.66,0.00024684,2]
[426954215,1783055440000,-456.96,0.00023689,2]
[426954225,1783055440000,-456.96,0.00024845,2]
[426954226,1783055440000,-660.21000207,0.00024866,2]
[426954216,1783055440000,-200.0,0.00023807,2]
[426954217,1783055440000,-500.0,0.0002411,2]
[426954223,1783055440000,-240.31,0.00024658,2]
[426954219,1783055440000,-167.16,0.00024204,2]
[426954220,1783055440000,-456.96,0.00024267,2]
[426954221,1783055440000,-155.42114839,0.00024397,2]
[426954222,1783055440000,-168.12,0.00024658,2]
[426954227,1783055440000,-165.06742497,0.00024909,2]
[426954218,1783055440000,-230.17258728,0.00024164,3]
[426954213,1783055440000,-1040.01,0.00023646,2]
[426954211,1783055440000,-150.0,0.00023607,2]
[426954212,1783055440000,-1210.72,0.00023624,2]
[426954210,1783055440000,-167.5,0.00023587,2]
[426954209,1783055440000,-309.03865155,0.00023526,2]
[426954208,1783055440000,-200.0,0.00023512,2]
[426954206,1783055440000,-200.0,0.00023352,2]
[426954204,1783055440000,-15708.87511892,0.00023342,2]